[Event "GER-ch Women Open 2019"]
[Site "Bodenmais"]
[Date "2019.08.03"]
[Round "8.4"]
[White "Peglau, Sarah"]
[Black "Just, Anita, Dr."]
[Result "0-1"]
[ECO "A40"]
[WhiteElo "1525"]
[BlackElo "1875"]
[Annotator "NA"]
[PlyCount "114"]
[EventDate "2019.07.27"]
[EventType "swiss"]
[EventCountry "GER"]
[SourceTitle "playchess.com"]
[Source "ChessBase"]
[SourceQuality "1"]
[TimeControl "40/5400+30:900+30"]

1. d4 {[%emt 0:00:00]} e6 {[%emt 0:00:00]} 2. c4 {[%emt 0:00:00]} f5 {[%emt 0:00:00]} 3. Nf3 {[%emt 0:00:00]} Nf6 {[%emt 0:00:00]} 4. Bf4 {[%emt 0:00:00]} Bb4+ {[%emt 0:00:19]} 5. Nbd2 {[%emt 0:00:23]} O-O {[%emt 0:00:18]} 6. e3 {[%emt 0:00:40]} b6 {[%emt 0:00:57]} 7. Be2 {[%emt 0:00:28]} Bb7 {[%emt 0:00:38]} 8. O-O {[%emt 0:00:43]} Bxd2 {[%emt 0:00:35]} 9. Nxd2 {[%emt 0:02:10]} d6 {[%emt 0:06:11]} 10. c5 {[%emt 0:07:10]} bxc5 {[%emt 0:23:52]} 11. dxc5 {[%emt 0:01:03]} d5 {[%emt 0:00:21]} 12. b4 {[%emt 0:04:29]} c6 {[%emt 0:08:13]} 13. f3 {[%emt 0:26:11]} Nbd7 {[%emt 0:04:56]} 14. Bd6 {[%emt 0:01:22]} Rf7 {[%emt 0:01:10]} 15. Nb3 {[%emt 0:06:03]} Ne8 {[%emt 0:05:32]} 16. Bg3 {[%emt 0:03:01]} g5 {[%emt 0:08:32]} 17. a4 {[%emt 0:02:54]} Rc8 {[%emt 0:07:28]} 18. Na5 {[%emt 0:06:15]} Nb8 {[%emt 0:01:27]} 19. Nxb7 {[%emt 0:00:27]} Rxb7 {[%emt 0:00:06]} 20. Qd4 {[%emt 0:03:45]} Rf7 {[%emt 0:06:57]} 21. Rfc1 {[%emt 0:09:05]} Ng7 {[%emt 0:09:54]} 22. Be5 {[%emt 0:08:02]} f4 {[%emt 0:03:22]} 23. exf4 {[%emt 0:01:17]} Nf5 {[%emt 0:00:32]} 24. Qb2 {[%emt 0:04:20]} gxf4 {[%emt 0:01:09]} 25. b5 {[%emt 0:04:18]} Nd7 {[%emt 0:01:33]} 26. Bxf4 {[%emt 0:01:38]} Qh4 {[%emt 0:01:07]} 27. Be5 {[%emt 0:02:26]} Nxe5 {[%emt 0:00:26]} 28. Qxe5 {[%emt 0:00:01]} Qd4+ {[%emt 0:00:33]} 29. Qxd4 {[%emt 0:00:04]} Nxd4 {[%emt 0:00:03]} 30. Bd1 {[%emt 0:00:35]} cxb5 {[%emt 0:00:48]} 31. axb5 {[%emt 0:02:18]} Nxb5 {[%emt 0:00:31]} 32. Ba4 {[%emt 0:01:08]} Nd4 {[%emt 0:00:32]} 33. Kf2 {[%emt 0:00:14]} Rfc7 {[%emt 0:00:50]} 34. c6 {[%emt 0:02:24]} a6 {[%emt 0:03:47]} 35. Rc5 {[%emt 0:01:44]} Kf7 {[%emt 0:01:20]} 36. Rac1 {[%emt 0:00:14]} Ke7 {[%emt 0:00:41]} 37. Ke3 {[%emt 0:00:45]} Nf5+ {[%emt 0:00:21]} 38. Kf2 {[%emt 0:00:46]} Kd6 {[%emt 0:00:37]} 39. Ra5 {[%emt 0:00:24]} Rb8 {[%emt 0:00:52]} 40. Rc2 {[%emt 0:00:39]} Rb6 {[%emt 0:00:58]} 41. Ra2 {[%emt 0:03:06]} Nd4 {[%emt 0:01:39]} 42. Ke3 {[%emt 0:03:25]} Nxc6 {[%emt 0:02:43]} 43. Bd1 {[%emt 0:00:23]} Nxa5 {[%emt 0:00:19]} 44. Rxa5 {[%emt 0:00:11]} Rc5 {[%emt 0:01:39]} 45. Ra4 {[%emt 0:00:23]} e5 {[%emt 0:02:49]} 46. f4 {[%emt 0:01:32]} e4 {[%emt 0:02:47]} 47. f5 {[%emt 0:00:39]} Ke5 {[%emt 0:00:32]} 48. g4 {[%emt 0:00:04]} Rc3+ {[%emt 0:00:50]} 49. Kf2 {[%emt 0:00:15]} Rb2+ {[%emt 0:00:59]} 50. Ke1 {[%emt 0:00:28]} Re3+ {[%emt 0:02:43]} 51. Kf1 {[%emt 0:00:15]} Rd2 {[%emt 0:00:34]} 52. Rxa6 {[%emt 0:00:30]} Rxd1+ {[%emt 0:00:23]} 53. Kf2 {[%emt 0:00:01]} Rf3+ {[%emt 0:00:14]} 54. Ke2 {[%emt 0:00:08]} Rh1 {[%emt 0:00:21]} 55. Rh6 {[%emt 0:00:27]} Ra1 {[%emt 0:00:49]} 56. Rxh7 {[%emt 0:00:16]} Ra2+ {[%emt 0:00:19]} 57. Ke1 {[%emt 0:00:09]} Rb3 {[%emt 0:00:10]} 0-1

[Event "GER-ch Women Open 2019"]
[Site "Bodenmais"]
[Date "2019.08.03"]
[Round "8.5"]
[White "Navarro Ortega-Villaizan, Lucia"]
[Black "Weinmann, Helene"]
[Result "1/2-1/2"]
[ECO "C41"]
[WhiteElo "1113"]
[BlackElo "1520"]
[Annotator "NA"]
[PlyCount "106"]
[EventDate "2019.07.27"]
[EventType "swiss"]
[EventCountry "GER"]
[SourceTitle "playchess.com"]
[Source "ChessBase"]
[SourceQuality "1"]
[TimeControl "40/5400+30:900+30"]

1. e4 {[%emt 0:00:00]} e5 {[%emt 0:00:00]} 2. Nf3 {[%emt 0:00:00]} d6 {[%emt 0:00:00]} 3. Bc4 {[%emt 0:00:03]} Be7 {[%emt 0:00:27]} 4. Nc3 {[%emt 0:03:06]} Nf6 {[%emt 0:01:04]} 5. h3 {[%emt 0:02:33]} O-O {[%emt 0:00:14]} 6. d3 {[%emt 0:00:31]} Be6 {[%emt 0:00:32]} 7. Bb3 {[%emt 0:00:18]} Nc6 {[%emt 0:00:40]} 8. Be3 {[%emt 0:02:19]} Bxb3 {[%emt 0:02:05]} 9. axb3 {[%emt 0:00:43]} a6 {[%emt 0:01:26]} 10. O-O {[%emt 0:01:15]} d5 {[%emt 0:03:16]} 11. exd5 {[%emt 0:03:24]} Nxd5 {[%emt 0:00:16]} 12. Nxd5 {[%emt 0:00:54]} Qxd5 {[%emt 0:00:19]} 13. c4 {[%emt 0:01:31]} Qd7 {[%emt 0:01:28]} 14. Re1 {[%emt 0:01:44]} Rad8 {[%emt 0:00:52]} 15. d4 {[%emt 0:05:24]} Bf6 {[%emt 0:00:59]} 16. d5 {[%emt 0:01:02]} Ne7 {[%emt 0:02:32]} 17. Qd3 {[%emt 0:05:04]} Qf5 {[%emt 0:05:11]} 18. Qxf5 {[%emt 0:01:12]} Nxf5 {[%emt 0:00:30]} 19. g4 {[%emt 0:00:31]} Nxe3 {[%emt 0:00:51]} 20. Rxe3 {[%emt 0:02:54]} e4 {[%emt 0:01:54]} 21. Rxe4 {[%emt 0:01:31]} Bxb2 {[%emt 0:00:15]} 22. Rd1 {[%emt 0:01:10]} Ba3 {[%emt 0:00:36]} 23. Rb1 {[%emt 0:03:26]} Bd6 {[%emt 0:02:52]} 24. Rbe1 {[%emt 0:01:48]} g6 {[%emt 0:04:59]} 25. Nd4 {[%emt 0:02:02]} Bc5 {[%emt 0:02:21]} 26. Nf3 {[%emt 0:04:40]} f5 {[%emt 0:03:13]} 27. gxf5 {[%emt 0:04:08]} Rxf5 {[%emt 0:00:14]} 28. Nd4 {[%emt 0:01:16]} Bxd4 {[%emt 0:01:00]} 29. Rxd4 Rdf8 30. Re2 {[%emt 0:02:27]} Rf3 {[%emt 0:01:04]} 31. Rdd2 {[%emt 0:05:56]} Rxh3 {[%emt 0:00:33]} 32. Re7 {[%emt 0:01:30]} Rf7 {[%emt 0:00:34]} 33. Re8+ {[%emt 0:00:28]} Kg7 {[%emt 0:00:19]} 34. Re3 {[%emt 0:01:24]} Rxe3 {[%emt 0:01:41]} 35. fxe3 {[%emt 0:00:17]} Kf8 {[%emt 0:00:24]} 36. e4 {[%emt 0:02:36]} Rf3 {[%emt 0:00:42]} 37. e5 {[%emt 0:03:16]} Rxb3 {[%emt 0:03:11]} 38. e6 {[%emt 0:01:08]} Re3 {[%emt 0:01:15]} 39. Rf2+ {[%emt 0:03:32]} Ke7 {[%emt 0:04:30]} 40. Rf7+ {[%emt 0:01:07]} Kd6 {[%emt 0:00:23]} 41. Rd7+ {[%emt 0:15:28]} Kc5 {[%emt 0:16:56]} 42. Rxc7+ {[%emt 0:00:39]} Kd6 {[%emt 0:06:57]} 43. Rd7+ {[%emt 0:01:11]} Kc5 {[%emt 0:00:26]} 44. Rc7+ {[%emt 0:01:15]} Kd6 {[%emt 0:00:38]} 45. Rxb7 {[%emt 0:01:53]} h5 {[%emt 0:01:50]} 46. Rd7+ {[%emt 0:04:42]} Kc5 {[%emt 0:00:33]} 47. Rc7+ {[%emt 0:02:00]} Kd6 {[%emt 0:00:41]} 48. Rc6+ {[%emt 0:03:29]} Ke7 {[%emt 0:01:14]} 49. Rc7+ {[%emt 0:02:55]} Kd6 {[%emt 0:00:52]} 50. Rg7 {[%emt 0:00:20]} Re4 {[%emt 0:02:20]} 51. Rd7+ {[%emt 0:03:04]} Kc5 {[%emt 0:01:27]} 52. Rc7+ {[%emt 0:01:35]} Kd6 {[%emt 0:00:22]} 53. Rd7+ {[%emt 0:00:58]} Kc5 {[%emt 0:01:12]} 1/2-1/2

[Event "GER-ch Women Open 2019"]
[Site "Bodenmais"]
[Date "2019.08.03"]
[Round "8.6"]
[White "Navarro Ortega-Villaizan, Alba"]
[Black "Steckmann, Kerstin"]
[Result "0-1"]
[ECO "C02"]
[WhiteElo "700"]
[BlackElo "1653"]
[Annotator "NA"]
[PlyCount "44"]
[EventDate "2019.07.27"]
[EventType "swiss"]
[EventCountry "GER"]
[SourceTitle "playchess.com"]
[Source "ChessBase"]
[SourceQuality "1"]
[TimeControl "40/5400+30:900+30"]

1. e4 {[%emt 0:00:00]} e6 {[%emt 0:00:00]} 2. d4 {[%emt 0:00:10]} d5 {[%emt 0:00:00]} 3. e5 {[%emt 0:00:26]} c5 {[%emt 0:00:00]} 4. c3 {[%emt 0:00:13]} Nc6 {[%emt 0:00:45]} 5. Bb5 {[%emt 0:00:22]} Bd7 {[%emt 0:00:12]} 6. Be3 {[%emt 0:00:30]} cxd4 {[%emt 0:02:31]} 7. cxd4 {[%emt 0:00:47]} Qa5+ {[%emt 0:02:39]} 8. Nc3 {[%emt 0:00:53]} Bb4 {[%emt 0:01:49]} 9. Bxc6 {[%emt 0:00:55]} Bxc3+ {[%emt 0:00:44]} 10. bxc3 {[%emt 0:00:33]} Qxc3+ {[%emt 0:00:10]} 11. Bd2 {[%emt 0:00:15]} Qxc6 {[%emt 0:00:10]} 12. Ne2 {[%emt 0:00:10]} Ne7 {[%emt 0:02:10]} 13. Rc1 {[%emt 0:00:41]} Qa6 {[%emt 0:00:52]} 14. Nc3 {[%emt 0:03:30]} O-O {[%emt 0:01:06]} 15. Bg5 Ng6 {[%emt 0:12:46]} 16. Rb1 {[%emt 0:06:06]} Rfc8 {[%emt 0:03:32]} 17. Ne2 {[%emt 0:00:46]} h6 {[%emt 0:10:13]} 18. Bd2 {[%emt 0:01:13]} Ba4 {[%emt 0:01:14]} 19. Rb3 {[%emt 0:01:37]} Bxb3 {[%emt 0:00:07]} 20. axb3 {[%emt 0:00:09]} Rc7 {[%emt 0:02:49]} 21. Nf4 {[%emt 0:00:45]} Rac8 {[%emt 0:02:09]} 22. Qg4 {[%emt 0:01:31]} Qa1+ {[%emt 0:05:36]} 0-1

[Event "GER-ch Women Open 2019"]
[Site "Bodenmais"]
[Date "2019.08.03"]
[Round "8.7"]
[White "Peglau, Adelheid"]
[Black "Peglau, Lorena"]
[Result "1/2-1/2"]
[ECO "B18"]
[WhiteElo "1187"]
[BlackElo "1108"]
[Annotator "NA"]
[PlyCount "90"]
[EventDate "2019.07.27"]
[EventType "swiss"]
[EventCountry "GER"]
[SourceTitle "playchess.com"]
[Source "ChessBase"]
[SourceQuality "1"]
[TimeControl "40/5400+30:900+30"]

1. e4 {[%emt 0:00:00]} c6 {[%emt 0:00:00]} 2. d4 {[%emt 0:00:00]} d5 {[%emt 0:00:00]} 3. Nc3 {[%emt 0:00:12]} dxe4 {[%emt 0:00:00]} 4. Nxe4 {[%emt 0:00:13]} Bf5 {[%emt 0:00:02]} 5. Ng3 {[%emt 0:00:35]} Bg6 {[%emt 0:00:13]} 6. Nf3 {[%emt 0:00:29]} Nd7 {[%emt 0:00:23]} 7. Bc4 {[%emt 0:03:56]} e6 {[%emt 0:02:33]} 8. O-O {[%emt 0:02:51]} Ngf6 {[%emt 0:00:23]} 9. Bg5 {[%emt 0:01:44]} Be7 {[%emt 0:00:21]} 10. Re1 {[%emt 0:02:34]} O-O {[%emt 0:00:26]} 11. Ne5 {[%emt 0:05:59]} Qc7 {[%emt 0:01:50]} 12. Nxg6 {[%emt 0:02:29]} hxg6 13. h3 {[%emt 0:11:36]} Bd6 {[%emt 0:01:21]} 14. Ne4 {[%emt 0:12:52]} Nxe4 {[%emt 0:02:10]} 15. Rxe4 {[%emt 0:00:57]} Nb6 {[%emt 0:02:15]} 16. Bd3 {[%emt 0:05:12]} c5 {[%emt 0:01:49]} 17. h4 {[%emt 0:01:49]} cxd4 {[%emt 0:04:09]} 18. h5 {[%emt 0:04:43]} gxh5 {[%emt 0:00:32]} 19. Qxh5 {[%emt 0:00:43]} g6 {[%emt 0:03:00]} 20. Qh6 {[%emt 0:00:55]} Be5 {[%emt 0:00:14]} 21. Rh4 {[%emt 0:00:18]} Rfc8 {[%emt 0:01:57]} 22. Qh7+ {[%emt 0:19:04]} Kf8 {[%emt 0:00:15]} 23. Re1 {[%emt 0:08:49]} Bg7 {[%emt 0:00:28]} 24. Bxg6 {[%emt 0:04:20]} fxg6 {[%emt 0:00:23]} 25. Rxe6 {[%emt 0:01:34]} Nd5 {[%emt 0:01:22]} 26. Qxg6 {[%emt 0:05:33]} Re8 {[%emt 0:00:39]} 27. Qf5+ {[%emt 0:02:18]} Kg8 {[%emt 0:01:10]} 28. Qxd5 {[%emt 0:01:31]} Qf7 {[%emt 0:00:45]} 29. Rxe8+ {[%emt 0:00:00]} Rxe8 {[%emt 0:00:00]} 30. Qxf7+ {[%emt 0:00:00]} Kxf7 {[%emt 0:00:00]} 31. Rf4+ {[%emt 0:00:00]} Kg6 {[%emt 0:00:00]} 32. Bh4 {[%emt 0:00:00]} Re2 {[%emt 0:00:00]} 33. Rg4+ {[%emt 0:00:00]} Kh6 {[%emt 0:00:00]} 34. b4 {[%emt 0:00:00]} Rxc2 {[%emt 0:00:00]} 35. a4 {[%emt 0:00:00]} Rb2 {[%emt 0:00:00]} 36. Be7 {[%emt 0:00:00]} Rb1+ {[%emt 0:00:00]} 37. Kh2 {[%emt 0:00:00]} Be5+ {[%emt 0:00:00]} 38. g3 {[%emt 0:00:00]} d3 {[%emt 0:00:00]} 39. Kg2 {[%emt 0:00:00]} Bc3 {[%emt 0:00:00]} 40. b5 {[%emt 0:00:00]} d2 {[%emt 0:00:00]} 41. Bg5+ {[%emt 0:12:02]} Kh5 {[%emt 0:06:11]} 42. Bxd2 {[%emt 0:01:17]} Kxg4 {[%emt 0:00:52]} 43. Bxc3 {[%emt 0:00:10]} a6 {[%emt 0:01:18]} 44. bxa6 {[%emt 0:01:18]} bxa6 {[%emt 0:00:10]} 45. a5 {[%emt 0:00:03]} Rc1 {[%emt 0:01:01]} 1/2-1/2

[Event "GER-ch Women Open 2019"]
[Site "Bodenmais"]
[Date "2019.08.04"]
[Round "9.1"]
[White "Von Herman, Brigitte"]
[Black "Navarro Ortega-Villaizan, Lucia"]
[Result "1-0"]
[ECO "C44"]
[WhiteElo "2062"]
[BlackElo "1113"]
[Annotator "NA"]
[PlyCount "49"]
[EventDate "2019.07.27"]
[EventType "swiss"]
[EventCountry "GER"]
[SourceTitle "playchess.com"]
[Source "ChessBase"]
[SourceQuality "1"]
[TimeControl "40/5400+30:900+30"]

1. e4 {[%emt 0:00:00]} e5 {[%emt 0:00:28]} 2. Nf3 {[%emt 0:00:00]} Nc6 {[%emt 0:00:54]} 3. d4 {[%emt 0:03:17]} f6 {[%emt 0:03:06]} 4. Bc4 {[%emt 0:06:30]} Nge7 {[%emt 0:04:25]} 5. Nc3 {[%emt 0:06:08]} d6 {[%emt 0:02:06]} 6. h3 {[%emt 0:02:56]} b6 {[%emt 0:01:57]} 7. O-O {[%emt 0:04:13]} Bb7 {[%emt 0:01:59]} 8. Re1 {[%emt 0:04:38]} Qd7 {[%emt 0:01:51]} 9. d5 {[%emt 0:04:35]} Na5 {[%emt 0:02:08]} 10. Bf1 {[%emt 0:04:47]} Bc8 {[%emt 0:04:22]} 11. b4 {[%emt 0:03:35]} Nb7 {[%emt 0:04:12]} 12. Nh4 {[%emt 0:08:26]} g6 {[%emt 0:03:17]} 13. f4 {[%emt 0:01:30]} exf4 {[%emt 0:02:12]} 14. Nf3 {[%emt 0:00:15]} Bg7 {[%emt 0:01:18]} 15. Bb5 {[%emt 0:04:36]} c6 {[%emt 0:02:54]} 16. dxc6 {[%emt 0:01:45]} Nxc6 {[%emt 0:02:16]} 17. Bxf4 {[%emt 0:03:22]} a6 {[%emt 0:07:45]} 18. Bxc6 {[%emt 0:04:26]} Qxc6 {[%emt 0:00:17]} 19. Nd5 {[%emt 0:00:09]} Be6 {[%emt 0:02:13]} 20. Nd4 {[%emt 0:00:39]} Qd7 {[%emt 0:06:17]} 21. Nxe6 {[%emt 0:00:09]} Kf7 {[%emt 0:00:33]} 22. Nxg7 {[%emt 0:00:38]} Kxg7 {[%emt 0:00:16]} 23. Qd4 {[%emt 0:00:23]} Rhf8 {[%emt 0:00:33]} 24. Bg5 {[%emt 0:02:10]} Qe6 {[%emt 0:01:08]} 25. Rf1 {[%emt 0:00:31]} 1-0

[Event "GER-ch Women Open 2019"]
[Site "Bodenmais"]
[Date "2019.08.04"]
[Round "9.2"]
[White "Peglau, Lorena"]
[Black "Ries, Jutta"]
[Result "0-1"]
[ECO "D04"]
[WhiteElo "1108"]
[BlackElo "1983"]
[Annotator "NA"]
[PlyCount "42"]
[EventDate "2019.07.27"]
[EventType "swiss"]
[EventCountry "GER"]
[SourceTitle "playchess.com"]
[Source "ChessBase"]
[SourceQuality "1"]
[TimeControl "40/5400+30:900+30"]

1. Nf3 {[%emt 0:00:00]} Nf6 {[%emt 0:00:00]} 2. d4 {[%emt 0:00:00]} d5 {[%emt 0:00:15]} 3. e3 {[%emt 0:00:00]} c5 {[%emt 0:00:36]} 4. dxc5 {[%emt 0:00:20]} Nc6 {[%emt 0:00:09]} 5. Nc3 {[%emt 0:00:58]} Bg4 {[%emt 0:00:36]} 6. Be2 {[%emt 0:00:31]} e6 {[%emt 0:00:32]} 7. h3 Bh5 {[%emt 0:00:06]} 8. Bd2 {[%emt 0:00:57]} Bxc5 {[%emt 0:00:08]} 9. O-O {[%emt 0:00:53]} O-O {[%emt 0:00:48]} 10. a3 a6 {[%emt 0:01:09]} 11. b4 {[%emt 0:02:37]} Bd6 {[%emt 0:02:32]} 12. Qb1 {[%emt 0:05:53]} Qe7 {[%emt 0:12:43]} 13. Qb3 {[%emt 0:00:30]} Ne4 {[%emt 0:02:56]} 14. Rad1 {[%emt 0:01:57]} Rfc8 {[%emt 0:03:22]} 15. Rfe1 {[%emt 0:02:54]} Nxd2 {[%emt 0:16:59]} 16. Nxd2 {[%emt 0:00:30]} Bxe2 {[%emt 0:04:12]} 17. Rxe2 {[%emt 0:00:17]} b5 {[%emt 0:01:18]} 18. e4 {[%emt 0:01:53]} Nd4 {[%emt 0:02:35]} 19. Qb2 {[%emt 0:00:45]} Rxc3 {[%emt 0:15:18]} 20. Qxc3 {[%emt 0:00:28]} Nxe2+ {[%emt 0:00:05]} 21. Kf1 {[%emt 0:00:35]} Nxc3 {[%emt 0:00:04]} 0-1

[Event "GER-ch Women Open 2019"]
[Site "Bodenmais"]
[Date "2019.08.04"]
[Round "9.4"]
[White "Just, Anita"]
[Black "Peglau, Dora"]
[Result "1/2-1/2"]
[ECO "B17"]
[WhiteElo "1875"]
[BlackElo "1300"]
[Annotator "NA"]
[PlyCount "87"]
[EventDate "2019.07.27"]
[EventType "swiss"]
[EventCountry "GER"]
[SourceTitle "playchess.com"]
[Source "ChessBase"]
[SourceQuality "1"]
[TimeControl "40/5400+30:900+30"]

1. e4 {[%emt 0:00:00]} c6 {[%emt 0:00:00]} 2. d4 {[%emt 0:00:00]} d5 {[%emt 0:00:00]} 3. Nc3 {[%emt 0:00:00]} dxe4 {[%emt 0:00:00]} 4. Nxe4 {[%emt 0:00:00]} Nd7 {[%emt 0:00:00]} 5. Ng5 {[%emt 0:02:55]} Ngf6 {[%emt 0:01:37]} 6. Bd3 {[%emt 0:00:16]} e6 {[%emt 0:03:54]} 7. N1f3 {[%emt 0:01:10]} Bd6 {[%emt 0:00:30]} 8. O-O {[%emt 0:00:38]} h6 {[%emt 0:00:47]} 9. Ne4 {[%emt 0:02:06]} Nxe4 {[%emt 0:01:29]} 10. Bxe4 {[%emt 0:00:05]} Nf6 {[%emt 0:00:11]} 11. Bd3 {[%emt 0:00:09]} O-O {[%emt 0:00:34]} 12. Ne5 {[%emt 0:05:19]} c5 {[%emt 0:02:48]} 13. c3 {[%emt 0:13:36]} cxd4 {[%emt 0:02:21]} 14. cxd4 {[%emt 0:00:06]} b6 {[%emt 0:01:36]} 15. Qf3 {[%emt 0:13:02]} Nd5 {[%emt 0:04:01]} 16. Qe4 {[%emt 0:06:12]} f5 {[%emt 0:04:29]} 17. Qe2 {[%emt 0:00:54]} Bxe5 {[%emt 0:16:32]} 18. dxe5 {[%emt 0:01:23]} Bb7 {[%emt 0:04:23]} 19. Bd2 {[%emt 0:01:55]} Rc8 {[%emt 0:01:51]} 20. Rac1 {[%emt 0:01:55]} Qh4 {[%emt 0:02:12]} 21. Bb5 {[%emt 0:14:16]} Qe7 {[%emt 0:08:29]} 22. a3 {[%emt 0:03:30]} Rfd8 {[%emt 0:08:44]} 23. h3 {[%emt 0:09:46]} Kh7 {[%emt 0:02:23]} 24. Rfd1 {[%emt 0:06:38]} Kg8 {[%emt 0:04:08]} 25. Qe1 {[%emt 0:09:05]} a6 {[%emt 0:02:25]} 26. Be2 {[%emt 0:00:40]} Kh7 {[%emt 0:02:28]} 27. Bf3 {[%emt 0:00:53]} Qf8 {[%emt 0:02:41]} 28. Qe2 {[%emt 0:00:50]} Rd7 {[%emt 0:03:56]} 29. Rxc8 {[%emt 0:03:00]} Qxc8 {[%emt 0:00:11]} 30. Rc1 {[%emt 0:00:41]} Rc7 {[%emt 0:00:11]} 31. Rxc7 {[%emt 0:00:31]} Qxc7 {[%emt 0:00:08]} 32. Qd3 {[%emt 0:00:18]} Qxe5 {[%emt 0:00:49]} 33. Bxd5 {[%emt 0:02:01]} Qxd5 {[%emt 0:01:21]} 34. Qxd5 {[%emt 0:00:19]} exd5 {[%emt 0:01:00]} 35. Be3 {[%emt 0:00:12]} b5 {[%emt 0:00:24]} 36. f4 {[%emt 0:00:39]} Kg6 {[%emt 0:01:04]} 37. h4 {[%emt 0:00:51]} h5 {[%emt 0:02:20]} 38. Bd4 {[%emt 0:00:45]} Kf7 {[%emt 0:00:17]} 39. Kf2 {[%emt 0:00:07]} g6 {[%emt 0:00:20]} 40. Ke3 {[%emt 0:00:15]} Ke6 {[%emt 0:00:18]} 41. g3 {[%emt 0:15:26]} Kd6 {[%emt 0:15:36]} 42. Kd3 {[%emt 0:00:21]} Kc6 {[%emt 0:00:29]} 43. Ba7 {[%emt 0:00:18]} Kd6 {[%emt 0:02:03]} 44. Bd4 1/2-1/2

[Event "GER-ch Women Open 2019"]
[Site "Bodenmais"]
[Date "2019.08.04"]
[Round "9.5"]
[White "Steckmann, Kerstin"]
[Black "Peglau, Sarah"]
[Result "0-1"]
[ECO "D55"]
[WhiteElo "1653"]
[BlackElo "1525"]
[Annotator "NA"]
[PlyCount "82"]
[EventDate "2019.07.27"]
[EventType "swiss"]
[EventCountry "GER"]
[SourceTitle "playchess.com"]
[Source "ChessBase"]
[SourceQuality "1"]
[TimeControl "40/5400+30:900+30"]

1. d4 {[%emt 0:00:00]} d5 {[%emt 0:00:00]} 2. c4 {[%emt 0:00:00]} e6 {[%emt 0:00:00]} 3. Nf3 {[%emt 0:00:00]} Nf6 {[%emt 0:00:02]} 4. Bg5 {[%emt 0:00:21]} Be7 {[%emt 0:00:17]} 5. e3 {[%emt 0:00:22]} O-O {[%emt 0:00:23]} 6. Nc3 {[%emt 0:00:14]} b6 {[%emt 0:04:22]} 7. cxd5 {[%emt 0:01:49]} exd5 {[%emt 0:04:00]} 8. Bd3 {[%emt 0:03:51]} Bb7 {[%emt 0:03:06]} 9. O-O {[%emt 0:04:01]} Na6 {[%emt 0:04:58]} 10. Rc1 {[%emt 0:03:14]} Ne4 {[%emt 0:19:00]} 11. Bxe7 {[%emt 0:05:11]} Qxe7 {[%emt 0:00:01]} 12. Ne2 {[%emt 0:06:41]} Rfc8 {[%emt 0:10:03]} 13. Qa4 {[%emt 0:15:49]} Nb4 {[%emt 0:01:10]} 14. Bb1 {[%emt 0:05:25]} Ba6 {[%emt 0:05:20]} 15. Rfe1 {[%emt 0:00:36]} Bd3 {[%emt 0:09:04]} 16. Nf4 {[%emt 0:02:45]} Bxb1 {[%emt 0:00:57]} 17. Rxb1 {[%emt 0:00:02]} g5 {[%emt 0:04:00]} 18. Nh5 {[%emt 0:04:21]} Nd3 {[%emt 0:01:46]} 19. Re2 {[%emt 0:00:36]} Re8 {[%emt 0:06:31]} 20. Qc6 {[%emt 0:06:31]} Rad8 {[%emt 0:07:55]} 21. Qh6 {[%emt 0:01:31]} f5 {[%emt 0:01:36]} 22. Nxg5 {[%emt 0:07:03]} Rd6 {[%emt 0:04:03]} 23. Qxh7+ {[%emt 0:03:30]} Qxh7 {[%emt 0:00:02]} 24. Nxh7 {[%emt 0:00:02]} Kxh7 {[%emt 0:00:01]} 25. Rd1 {[%emt 0:01:37]} Ndxf2 {[%emt 0:02:21]} 26. Rxf2 {[%emt 0:00:17]} Nxf2 {[%emt 0:00:13]} 27. Kxf2 {[%emt 0:00:02]} c5 {[%emt 0:03:44]} 28. dxc5 {[%emt 0:03:38]} bxc5 {[%emt 0:00:01]} 29. Nf4 {[%emt 0:01:19]} Kg7 {[%emt 0:04:26]} 30. Rxd5 {[%emt 0:00:58]} Rxd5 {[%emt 0:00:03]} 31. Nxd5 {[%emt 0:00:15]} Rd8 {[%emt 0:00:12]} 32. Nf4 {[%emt 0:02:17]} Rd2+ {[%emt 0:01:06]} 33. Kf3 {[%emt 0:00:28]} c4 {[%emt 0:01:25]} 34. h4 {[%emt 0:08:02]} Rxb2 {[%emt 0:00:12]} 35. e4 {[%emt 0:03:24]} c3 {[%emt 0:02:07]} 36. exf5 {[%emt 0:01:31]} Rxa2 {[%emt 0:02:46]} 37. Ke3 {[%emt 0:01:25]} a5 {[%emt 0:00:34]} 38. Kd3 {[%emt 0:01:57]} a4 {[%emt 0:00:40]} 39. Kxc3 {[%emt 0:00:36]} Rf2 {[%emt 0:00:13]} 40. Nd3 {[%emt 0:07:11]} Rxg2 {[%emt 0:00:02]} 41. Nb2 {[%emt 0:15:14]} Rf2 0-1